[Event "Lilla Elite Hotels Open 2024"]
[Site "Elite Stadshotellet, Kungsgatan 6, Vaxjo, Sweden"]
[Date "2024.02.09"]
[Round "3.2"]
[White "Johansson, Sigge"]
[Black "Nordin, Marcus"]
[Result "1-0"]
[TimeControl "15 minutes + 5 seconds per move from move one (Round 1 - 4) / 90 minutes + 30 seconds per move from move one (Round 5 - 8)"]
[WhiteFideId "1742612"]
[BlackFideId "1753444"]
[WhiteElo "1577"]
[BlackElo "1410"]

1. e4 {[%clk 00:15:06]} {[%emt 00:00:03]} c6 {[%clk 00:15:10]} {[%emt
00:00:02]} 2. Nf3 {[%clk 00:15:08]} {[%emt 00:00:02]} d5 {[%clk 00:15:14]}
{[%emt 00:00:02]} 3. Nc3 {[%clk 00:15:11]} {[%emt 00:00:02]} dxe4 {[%clk
00:15:17]} {[%emt 00:00:01]} 4. Nxe4 {[%clk 00:15:14]} {[%emt 00:00:03]} Nf6
{[%clk 00:15:21]} {[%emt 00:00:01]} 5. Nxf6+ {[%clk 00:15:17]} {[%emt
00:00:02]} exf6 {[%clk 00:15:24]} {[%emt 00:00:02]} 6. Bc4 {[%clk 00:15:21]}
{[%emt 00:00:01]} Bc5 {[%clk 00:15:19]} {[%emt 00:00:10]} 7. O-O {[%clk
00:15:22]} {[%emt 00:00:02]} O-O {[%clk 00:15:22]} {[%emt 00:00:04]} 8. d4
{[%clk 00:15:25]} {[%emt 00:00:02]} Bb6 {[%clk 00:15:23]} {[%emt 00:00:04]} 9.
h3 {[%clk 00:15:22]} {[%emt 00:00:08]} Be6 {[%clk 00:15:23]} {[%emt 00:00:05]}
10. Bxe6 {[%clk 00:15:11]} {[%emt 00:00:17]} fxe6 {[%clk 00:15:26]} {[%emt
00:00:02]} 11. Re1 {[%clk 00:15:14]} {[%emt 00:00:02]} Re8 {[%clk 00:15:24]}
{[%emt 00:00:07]} 12. c3 {[%clk 00:15:14]} {[%emt 00:00:06]} Nd7 {[%clk
00:15:21]} {[%emt 00:00:08]} 13. Bf4 {[%clk 00:15:17]} {[%emt 00:00:01]} Bc7
{[%clk 00:15:08]} {[%emt 00:00:18]} 14. Bxc7 {[%clk 00:15:06]} {[%emt
00:00:15]} Qxc7 {[%clk 00:15:11]} {[%emt 00:00:02]} 15. Qb3 {[%clk 00:15:07]}
{[%emt 00:00:04]} Kf7 {[%clk 00:15:02]} {[%emt 00:00:14]} 16. Re2 {[%clk
00:14:54]} {[%emt 00:00:18]} c5 {[%clk 00:15:02]} {[%emt 00:00:05]} 17. Rae1
{[%clk 00:14:19]} {[%emt 00:00:40]} c4 {[%clk 00:14:59]} {[%emt 00:00:09]} 18.
Qc2 {[%clk 00:14:04]} {[%emt 00:00:19]} Qc6 {[%clk 00:14:50]} {[%emt 00:00:13]}
19. Qxh7 {[%clk 00:13:42]} {[%emt 00:00:27]} Rh8 {[%clk 00:14:20]} {[%emt
00:00:36]} 20. Qe4 {[%clk 00:13:43]} {[%emt 00:00:04]} Qxe4 {[%clk 00:14:21]}
{[%emt 00:00:04]} 21. Rxe4 {[%clk 00:13:46]} {[%emt 00:00:02]} Rae8 {[%clk
00:14:24]} {[%emt 00:00:01]} 22. Nd2 {[%clk 00:13:50]} {[%emt 00:00:01]} b5
{[%clk 00:14:24]} {[%emt 00:00:06]} 23. R4e3 {[%clk 00:13:37]} {[%emt
00:00:17]} Nb6 {[%clk 00:14:22]} {[%emt 00:00:07]} 24. Ne4 {[%clk 00:13:37]}
{[%emt 00:00:05]} Nd5 {[%clk 00:14:22]} {[%emt 00:00:05]} 25. Nd6+ {[%clk
00:12:43]} {[%emt 00:00:59]} Ke7 {[%clk 00:14:18]} {[%emt 00:00:08]} 26. Rxe6+
{[%clk 00:12:40]} {[%emt 00:00:08]} Kd7 {[%clk 00:14:18]} {[%emt 00:00:06]} 27.
Nxe8 {[%clk 00:12:26]} {[%emt 00:00:19]} Nf4 {[%clk 00:13:46]} {[%emt
00:00:37]} 28. R6e4 {[%clk 00:12:03]} {[%emt 00:00:28]} Nd3 {[%clk 00:13:43]}
{[%emt 00:00:08]} 29. R1e2 {[%clk 00:11:49]} {[%emt 00:00:18]} Rg8 {[%clk
00:13:21]} {[%emt 00:00:27]} 30. Re7+ {[%clk 00:11:52]} {[%emt 00:00:03]} Kd8
{[%clk 00:13:13]} {[%emt 00:00:13]} 31. Nd6 {[%clk 00:11:45]} {[%emt 00:00:09]}
a6 {[%clk 00:13:00]} {[%emt 00:00:22]} 32. Re8+ {[%clk 00:11:46]} {[%emt
00:00:03]} Rxe8 {[%clk 00:13:02]} {[%emt 00:00:03]} 33. Nxe8 {[%clk 00:11:50]}
Nf4 {[%clk 00:13:04]} {[%emt 00:00:03]} 34. Re4 {[%clk 00:11:45]} {[%emt
00:00:10]} Nh5 {[%clk 00:12:56]} {[%emt 00:00:13]} 35. g4 {[%clk 00:11:29]}
{[%emt 00:00:20]} f5 {[%clk 00:12:50]} {[%emt 00:00:11]} 36. gxf5 {[%clk
00:11:29]} {[%emt 00:00:06]} Nf6 {[%clk 00:12:52]} {[%emt 00:00:03]} 37. Nxf6
{[%clk 00:11:31]} {[%emt 00:00:02]} gxf6 {[%clk 00:12:56]} {[%emt 00:00:02]} 38.
h4 {[%clk 00:11:35]} {[%emt 00:00:01]} 1-0

[Event "Lilla Elite Hotels Open 2024"]
[Site "Elite Stadshotellet, Kungsgatan 6, Vaxjo, Sweden"]
[Date "2024.02.09"]
[Round "4.1"]
[White "Lyngsjo, Luke"]
[Black "Madevan Vaishnavi, Yaashvan"]
[Result "1/2-1/2"]
[TimeControl "15 minutes + 5 seconds per move from move one (Round 1 - 4) / 90 minutes + 30 seconds per move from move one (Round 5 - 8)"]
[WhiteFideId "1755811"]
[BlackFideId "1772180"]
[WhiteElo "1587"]
[BlackElo "1461"]

1. e4 {[%clk 00:15:08]} {[%emt 00:00:01]} c5 {[%clk 00:15:09]} {[%emt
00:00:02]} 2. Nf3 {[%clk 00:15:11]} g6 {[%clk 00:15:13]} {[%emt 00:00:02]} 3.
c3 {[%clk 00:15:14]} {[%emt 00:00:02]} d5 {[%clk 00:15:06]} {[%emt 00:00:12]} 4.
exd5 {[%clk 00:15:03]} {[%emt 00:00:17]} Qxd5 {[%clk 00:15:08]} {[%emt
00:00:02]} 5. Bb5+ {[%clk 00:15:03]} {[%emt 00:00:05]} Bd7 {[%clk 00:14:34]}
{[%emt 00:00:39]} 6. Bxd7+ {[%clk 00:15:06]} {[%emt 00:00:02]} Qxd7 {[%clk
00:14:14]} {[%emt 00:00:25]} 7. O-O {[%clk 00:14:58]} {[%emt 00:00:12]} Bg7
{[%clk 00:14:12]} {[%emt 00:00:08]} 8. d4 {[%clk 00:14:24]} {[%emt 00:00:39]}
cxd4 {[%clk 00:13:55]} {[%emt 00:00:22]} 9. Nxd4 {[%clk 00:14:27]} {[%emt
00:00:01]} Nf6 {[%clk 00:13:56]} {[%emt 00:00:04]} 10. Qf3 {[%clk 00:14:10]}
{[%emt 00:00:22]} O-O {[%clk 00:13:31]} {[%emt 00:00:31]} 11. Be3 {[%clk
00:13:14]} {[%emt 00:01:01]} e5 {[%clk 00:13:22]} {[%emt 00:00:14]} 12. Ne2
{[%clk 00:12:23]} {[%emt 00:00:56]} Nc6 {[%clk 00:13:09]} {[%emt 00:00:18]} 13.
Nd2 {[%clk 00:10:52]} {[%emt 00:01:36]} Rfe8 {[%clk 00:12:22]} {[%emt
00:00:52]} 14. Ne4 {[%clk 00:10:04]} {[%emt 00:00:53]} Nxe4 {[%clk 00:11:58]}
{[%emt 00:00:29]} 15. Qxe4 {[%clk 00:10:06]} {[%emt 00:00:03]} Rad8 {[%clk
00:11:56]} {[%emt 00:00:07]} 16. Qa4 {[%clk 00:09:37]} {[%emt 00:00:34]} Nd4
{[%clk 00:11:18]} {[%emt 00:00:42]} 17. Qd1 {[%clk 00:09:11]} {[%emt 00:00:32]}
Nxe2+ {[%clk 00:10:18]} {[%emt 00:01:06]} 18. Qxe2 {[%clk 00:09:14]} {[%emt
00:00:02]} b6 {[%clk 00:10:21]} {[%emt 00:00:02]} 19. Rad1 {[%clk 00:08:30]}
{[%emt 00:00:48]} Qe7 {[%clk 00:09:29]} {[%emt 00:00:58]} 20. Rxd8 {[%clk
00:06:56]} {[%emt 00:01:40]} 1/2-1/2

[Event "Lilla Elite Hotels Open 2024"]
[Site "Elite Stadshotellet, Kungsgatan 6, Vaxjo, Sweden"]
[Date "2024.02.09"]
[Round "4.2"]
[White "Tengstrand-Nugent, William"]
[Black "Johansson, Sigge"]
[Result "0-1"]
[TimeControl "15 minutes + 5 seconds per move from move one (Round 1 - 4) / 90 minutes + 30 seconds per move from move one (Round 5 - 8)"]
[WhiteFideId "1750399"]
[BlackFideId "1742612"]
[WhiteElo "1395"]
[BlackElo "1577"]

1. e4 {[%clk 00:15:09]} c5 {[%clk 00:15:09]} {[%emt 00:00:02]} 2. Nc3 {[%clk
00:15:03]} {[%emt 00:00:11]} g6 {[%clk 00:15:11]} {[%emt 00:00:02]} 3. d3
{[%clk 00:14:37]} {[%emt 00:00:31]} Bg7 {[%clk 00:15:13]} {[%emt 00:00:03]} 4.
Bd2 {[%clk 00:14:40]} {[%emt 00:00:01]} Nc6 {[%clk 00:15:17]} {[%emt 00:00:02]}
5. Be2 {[%clk 00:14:30]} {[%emt 00:00:15]} Nf6 {[%clk 00:15:20]} {[%emt
00:00:02]} 6. Nf3 {[%clk 00:14:17]} {[%emt 00:00:19]} O-O {[%clk 00:15:22]}
{[%emt 00:00:02]} 7. O-O {[%clk 00:14:20]} {[%emt 00:00:02]} d5 {[%clk
00:15:25]} {[%emt 00:00:02]} 8. exd5 {[%clk 00:14:03]} {[%emt 00:00:23]} Nxd5
{[%clk 00:15:28]} {[%emt 00:00:01]} 9. Rb1 {[%clk 00:13:40]} {[%emt 00:00:28]}
b6 {[%clk 00:15:25]} {[%emt 00:00:08]} 10. Ne4 {[%clk 00:13:05]} {[%emt
00:00:40]} Bb7 {[%clk 00:14:43]} {[%emt 00:00:47]} 11. c4 {[%clk 00:12:42]}
{[%emt 00:00:27]} Ndb4 {[%clk 00:14:17]} {[%emt 00:00:32]} 12. a3 {[%clk
00:12:21]} {[%emt 00:00:26]} Nxd3 {[%clk 00:14:01]} {[%emt 00:00:21]} 13. Bc3
{[%clk 00:11:41]} {[%emt 00:00:45]} Nde5 {[%clk 00:13:45]} {[%emt 00:00:20]} 14.
Qc2 {[%clk 00:11:06]} {[%emt 00:00:41]} Nd4 {[%clk 00:13:17]} {[%emt 00:00:33]}
15. Nxd4 {[%clk 00:10:36]} {[%emt 00:00:36]} cxd4 {[%clk 00:13:17]} {[%emt
00:00:04]} 16. Rbd1 {[%clk 00:10:19]} {[%emt 00:00:20]} Nc6 {[%clk 00:13:09]}
{[%emt 00:00:15]} 17. Bf3 {[%clk 00:09:25]} {[%emt 00:00:59]} Qc7 {[%clk
00:13:01]} {[%emt 00:00:14]} 18. Bd2 {[%clk 00:08:52]} {[%emt 00:00:35]} Ne5
{[%clk 00:12:43]} {[%emt 00:00:25]} 19. Be2 {[%clk 00:08:08]} {[%emt 00:00:50]}
Qc6 {[%clk 00:11:40]} {[%emt 00:01:07]} 20. f3 {[%clk 00:07:14]} {[%emt
00:00:59]} Rfd8 {[%clk 00:11:20]} {[%emt 00:00:25]} 21. Bg5 {[%clk 00:06:39]}
{[%emt 00:00:40]} Rd7 {[%clk 00:10:53]} {[%emt 00:00:33]} 22. Nf2 {[%clk
00:05:36]} {[%emt 00:01:07]} Rc8 {[%clk 00:10:31]} {[%emt 00:00:27]} 23. b3
{[%clk 00:05:25]} {[%emt 00:00:16]} b5 {[%clk 00:10:14]} {[%emt 00:00:22]} 24.
Rc1 {[%clk 00:04:41]} {[%emt 00:00:49]} Ba6 {[%clk 00:10:11]} {[%emt 00:00:08]}
25. c5 {[%clk 00:04:03]} {[%emt 00:00:44]} Rcd8 {[%clk 00:09:46]} {[%emt
00:00:30]} 26. Rfd1 {[%clk 00:03:31]} {[%emt 00:00:36]} Bb7 {[%clk 00:09:16]}
{[%emt 00:00:35]} 27. Rd2 {[%clk 00:02:56]} {[%emt 00:00:40]} h6 {[%clk
00:08:05]} {[%emt 00:01:16]} 28. Bh4 {[%clk 00:02:46]} {[%emt 00:00:15]} g5
{[%clk 00:08:04]} {[%emt 00:00:05]} 29. Bg3 {[%clk 00:02:50]} {[%emt 00:00:02]}
g4 {[%clk 00:07:59]} {[%emt 00:00:10]} 30. Ne4 {[%clk 00:02:30]} {[%emt
00:00:25]} d3 {[%clk 00:07:38]} {[%emt 00:00:26]} 31. Bxd3 {[%clk 00:01:29]}
{[%emt 00:01:07]} Nxd3 {[%clk 00:07:41]} {[%emt 00:00:02]} 32. Rcd1 {[%clk
00:00:45]} {[%emt 00:00:47]} Ne5 {[%clk 00:07:35]} {[%emt 00:00:13]} 33. Bh4
{[%clk 00:00:29]} {[%emt 00:00:20]} Rxd2 {[%clk 00:06:09]} {[%emt 00:01:31]} 34.
Rxd2 {[%clk 00:00:31]} {[%emt 00:00:03]} Rxd2 {[%clk 00:06:12]} {[%emt
00:00:02]} 35. Qxd2 {[%clk 00:00:34]} {[%emt 00:00:02]} Qd5 {[%clk 00:06:09]}
{[%emt 00:00:08]} 36. Bxe7 {[%clk 00:00:18]} {[%emt 00:00:22]} gxf3 {[%clk
00:05:48]} {[%emt 00:00:26]} 37. Nf2 {[%clk 00:00:08]} {[%emt 00:00:15]} Qxd2
{[%clk 00:05:49]} {[%emt 00:00:04]} 38. c6 {[%clk 00:00:08]} {[%emt 00:00:05]}
Bxc6 {[%clk 00:05:51]} {[%emt 00:00:02]} 39. h3 {[%clk 00:00:08]} {[%emt
00:00:06]} Qe1+ {[%clk 00:05:53]} {[%emt 00:00:03]} 40. Kh2 {[%clk 00:00:12]}
Qxf2 {[%clk 00:05:56]} 41. h4 {[%clk 00:00:11]} {[%emt 00:00:06]} Qxg2# {[%clk
00:05:59]} {[%emt 00:00:02]} 0-1

[Event "Lilla Elite Hotels Open 2024"]
[Site "Elite Stadshotellet, Kungsgatan 6, Vaxjo, Sweden"]
[Date "2024.02.10"]
[Round "5.2"]
[White "Viswanath, Rishi"]
[Black "Lyngsjo, Luke"]
[Result "1-0"]
[TimeControl "15 minutes + 5 seconds per move from move one (Round 1 - 4) / 90 minutes + 30 seconds per move from move one (Round 5 - 8)"]
[WhiteFideId "1774905"]
[BlackFideId "1755811"]
[WhiteElo "1541"]
[BlackElo "1587"]

1. Nf3 {[%clk 01:30:40]} {[%emt 00:00:18]} Nf6 {[%clk 01:30:49]} {[%emt
00:00:11]} 2. c4 {[%clk 01:30:46]} {[%emt 00:00:25]} g6 {[%clk 01:30:56]}
{[%emt 00:00:23]} 3. d4 {[%clk 01:30:29]} {[%emt 00:00:46]} Bg7 {[%clk
01:31:17]} {[%emt 00:00:09]} 4. g3 {[%clk 01:30:17]} {[%emt 00:00:42]} d6
{[%clk 01:29:56]} {[%emt 00:01:52]} 5. Bg2 {[%clk 01:30:27]} {[%emt 00:00:19]}
O-O {[%clk 01:29:42]} {[%emt 00:00:45]} 6. O-O {[%clk 01:30:40]} {[%emt
00:00:16]} Nbd7 {[%clk 01:27:29]} {[%emt 00:02:44]} 7. Nc3 {[%clk 01:29:44]}
{[%emt 00:01:23]} e5 {[%clk 01:24:56]} {[%emt 00:03:07]} 8. e4 {[%clk
01:28:11]} {[%emt 00:02:02]} exd4 {[%clk 01:14:37]} {[%emt 00:10:49]} 9. Nxd4
{[%clk 01:27:54]} {[%emt 00:00:44]} Ne5 {[%clk 01:14:53]} {[%emt 00:00:16]} 10.
b3 {[%clk 01:23:37]} {[%emt 00:04:47]} Bd7 {[%clk 01:12:50]} {[%emt 00:02:33]}
11. h3 {[%clk 01:20:10]} {[%emt 00:03:57]} Nc6 {[%clk 01:10:39]} {[%emt
00:02:41]} 12. Be3 {[%clk 01:13:00]} {[%emt 00:07:39]} Nxd4 {[%clk 01:09:39]}
{[%emt 00:01:31]} 13. Bxd4 {[%clk 01:11:41]} {[%emt 00:01:48]} Bc6 {[%clk
01:05:26]} {[%emt 00:04:43]} 14. Qc2 {[%clk 01:00:43]} {[%emt 00:11:28]} Nd7
{[%clk 01:03:09]} {[%emt 00:02:47]} 15. Be3 {[%clk 00:55:46]} {[%emt 00:05:27]}
f5 {[%clk 00:59:14]} {[%emt 00:04:26]} 16. Rad1 {[%clk 00:48:50]} {[%emt
00:07:26]} Bxc3 {[%clk 00:51:40]} {[%emt 00:08:03]} 17. Qxc3 {[%clk 00:49:13]}
{[%emt 00:00:07]} fxe4 {[%clk 00:43:06]} {[%emt 00:09:04]} 18. Bh6 {[%clk
00:48:39]} {[%emt 00:01:03]} Rf7 {[%clk 00:41:54]} {[%emt 00:01:44]} 19. Rfe1
{[%clk 00:39:47]} {[%emt 00:09:21]} Qf6 {[%clk 00:38:24]} {[%emt 00:03:59]} 20.
Qe3 {[%clk 00:38:40]} {[%emt 00:01:38]} Re8 {[%clk 00:30:56]} {[%emt 00:07:58]}
21. Bg5 {[%clk 00:28:08]} {[%emt 00:11:01]} Qf5 {[%clk 00:29:42]} {[%emt
00:01:44]} 22. b4 {[%clk 00:17:13]} {[%emt 00:11:26]} Ne5 {[%clk 00:24:14]}
{[%emt 00:05:58]} 23. g4 {[%clk 00:05:12]} {[%emt 00:12:31]} Nf3+ {[%clk
00:23:48]} {[%emt 00:00:56]} 24. Bxf3 {[%clk 00:04:07]} {[%emt 00:01:35]} Qxf3
{[%clk 00:24:10]} {[%emt 00:00:08]} 25. Qxf3 {[%clk 00:04:26]} {[%emt
00:00:11]} Rxf3 {[%clk 00:24:33]} {[%emt 00:00:08]} 26. b5 {[%clk 00:03:47]}
{[%emt 00:01:09]} Bd7 {[%clk 00:24:55]} {[%emt 00:00:07]} 27. Re3 {[%clk
00:04:13]} {[%emt 00:00:04]} Rxe3 {[%clk 00:11:29]} {[%emt 00:13:57]} 28. Bxe3
{[%clk 00:04:29]} {[%emt 00:00:13]} Re6 {[%clk 00:09:30]} {[%emt 00:02:29]} 29.
Bxa7 {[%clk 00:02:59]} {[%emt 00:02:01]} Re8 {[%clk 00:09:37]} {[%emt
00:00:22]} 30. b6 {[%clk 00:02:08]} {[%emt 00:01:22]} c5 {[%clk 00:05:05]}
{[%emt 00:05:02]} 31. Rxd6 {[%clk 00:01:56]} {[%emt 00:00:42]} Bc6 {[%clk
00:05:27]} {[%emt 00:00:08]} 32. Rxc6 {[%clk 00:01:33]} {[%emt 00:00:53]} 1-0

[Event "Lilla Elite Hotels Open 2024"]
[Site "Elite Stadshotellet, Kungsgatan 6, Vaxjo, Sweden"]
[Date "2024.02.10"]
[Round "6.1"]
[White "Viswanath, Rishi"]
[Black "Johansson, Sigge"]
[Result "1-0"]
[TimeControl "15 minutes + 5 seconds per move from move one (Round 1 - 4) / 90 minutes + 30 seconds per move from move one (Round 5 - 8)"]
[WhiteFideId "1774905"]
[BlackFideId "1742612"]
[WhiteElo "1541"]
[BlackElo "1577"]

1. Nf3 {[%clk 01:30:27]} {[%emt 00:00:32]} Nf6 {[%clk 01:30:50]} {[%emt
00:00:11]} 2. c4 {[%clk 01:30:45]} {[%emt 00:00:11]} g6 {[%clk 01:31:08]}
{[%emt 00:00:12]} 3. d4 {[%clk 01:31:00]} {[%emt 00:00:15]} Bg7 {[%clk
01:31:32]} {[%emt 00:00:06]} 4. g3 {[%clk 01:31:23]} {[%emt 00:00:07]} O-O
{[%clk 01:31:39]} {[%emt 00:00:23]} 5. Bg2 {[%clk 01:31:39]} {[%emt 00:00:12]}
d5 {[%clk 01:31:56]} {[%emt 00:00:15]} 6. O-O {[%clk 01:24:53]} {[%emt
00:07:16]} c6 {[%clk 01:27:27]} {[%emt 00:05:00]} 7. Nc3 {[%clk 01:18:43]}
{[%emt 00:06:40]} Bf5 {[%clk 01:26:11]} {[%emt 00:01:46]} 8. Qb3 {[%clk
01:15:31]} {[%emt 00:03:42]} Qb6 {[%clk 01:14:59]} {[%emt 00:11:43]} 9. Nh4
{[%clk 01:10:16]} {[%emt 00:05:44]} Qxb3 {[%clk 01:13:53]} {[%emt 00:01:37]} 10.
axb3 {[%clk 01:09:16]} {[%emt 00:01:29]} Be6 {[%clk 01:14:12]} {[%emt
00:00:11]} 11. Ra4 {[%clk 01:07:42]} {[%emt 00:02:04]} Nbd7 {[%clk 01:12:43]}
{[%emt 00:01:59]} 12. c5 {[%clk 01:04:38]} {[%emt 00:03:34]} Ne8 {[%clk
01:00:50]} {[%emt 00:12:24]} 13. Nf3 {[%clk 00:54:56]} {[%emt 00:10:11]} a6
{[%clk 00:58:11]} {[%emt 00:03:10]} 14. Rb4 {[%clk 00:51:10]} {[%emt 00:04:17]}
Ra7 {[%clk 00:58:34]} {[%emt 00:00:07]} 15. Bf4 {[%clk 00:49:55]} {[%emt
00:01:44]} Bf5 {[%clk 00:57:38]} {[%emt 00:01:26]} 16. Ra1 {[%clk 00:48:18]}
{[%emt 00:02:07]} f6 {[%clk 00:56:38]} {[%emt 00:01:31]} 17. Nh4 {[%clk
00:45:50]} {[%emt 00:02:58]} Bc2 {[%clk 00:54:22]} {[%emt 00:02:46]} 18. Bh3
{[%clk 00:42:18]} {[%emt 00:04:01]} f5 {[%clk 00:49:14]} {[%emt 00:05:39]} 19.
Nf3 {[%clk 00:31:33]} {[%emt 00:11:14]} h6 {[%clk 00:45:51]} {[%emt 00:03:53]}
20. Ne1 {[%clk 00:29:19]} {[%emt 00:02:45]} Bxb3 {[%clk 00:39:33]} {[%emt
00:06:47]} 21. Rxb3 {[%clk 00:28:40]} {[%emt 00:01:09]} Bxd4 {[%clk 00:39:58]}
{[%emt 00:00:05]} 22. Bxh6 {[%clk 00:27:32]} {[%emt 00:01:38]} Rf7 {[%clk
00:39:33]} {[%emt 00:00:54]} 23. Nf3 {[%clk 00:24:07]} {[%emt 00:03:55]} Bxc5
{[%clk 00:39:15]} {[%emt 00:00:48]} 24. Na4 {[%clk 00:22:04]} {[%emt 00:02:34]}
Bd6 {[%clk 00:39:16]} {[%emt 00:00:29]} 25. Be3 {[%clk 00:21:42]} {[%emt
00:00:52]} c5 {[%clk 00:38:49]} {[%emt 00:00:57]} 26. Nb6 {[%clk 00:20:51]}
{[%emt 00:01:22]} Nxb6 {[%clk 00:38:29]} {[%emt 00:00:49]} 27. Rxb6 {[%clk
00:21:04]} {[%emt 00:00:17]} e5 {[%clk 00:35:25]} {[%emt 00:03:33]} 28. Rxd6
{[%clk 00:19:38]} {[%emt 00:01:57]} Nxd6 {[%clk 00:34:02]} {[%emt 00:01:53]} 29.
Bxc5 {[%clk 00:20:01]} {[%emt 00:00:06]} Ra8 {[%clk 00:34:24]} {[%emt
00:00:08]} 30. Bxd6 {[%clk 00:20:02]} {[%emt 00:00:30]} e4 {[%clk 00:34:29]}
{[%emt 00:00:24]} 31. Ng5 {[%clk 00:19:01]} {[%emt 00:01:32]} Rf6 {[%clk
00:34:33]} {[%emt 00:00:25]} 32. Be5 {[%clk 00:19:00]} {[%emt 00:00:31]} Rc6
{[%clk 00:34:41]} {[%emt 00:00:22]} 33. Bc3 {[%clk 00:19:21]} {[%emt 00:00:09]}
b5 {[%clk 00:34:51]} {[%emt 00:00:20]} 34. e3 {[%clk 00:19:20]} {[%emt
00:00:30]} Rb6 {[%clk 00:34:52]} {[%emt 00:00:30]} 35. Bf1 {[%clk 00:18:12]}
{[%emt 00:01:38]} b4 {[%clk 00:34:26]} {[%emt 00:00:57]} 36. Bd4 {[%clk
00:18:38]} {[%emt 00:00:04]} Rc6 {[%clk 00:34:42]} {[%emt 00:00:14]} 37. Bb5
{[%clk 00:18:47]} {[%emt 00:00:21]} Rcc8 {[%clk 00:33:58]} {[%emt 00:01:14]} 38.
Rxa6 {[%clk 00:18:26]} {[%emt 00:00:51]} 1-0